Cogmind - Beta 17 @@@ ROGUE MODE // 2026.07.30 @ 15:23:11 Player: tritri Result: Self-destructed Performance ------------- Evolutions (2) 1000 Regions Visited (3) 600 Robots Destroyed (40) 200 Value Destroyed (790) 790 Prototype IDs (2) 40 Alien Tech Used (0) 0 Bonus (0) 0 TOTAL SCORE: 2630 Bonus ------- None Cogmind --------- Core Integrity 462/550 Matter 237/300 Energy 140/140 System Corruption 0% Temperature Cool (0) Movement Core (100) Ox1 Location -8/Materials Parts ------- > --- POWER (1) -------- Light Deuterium Engine > --- PROPULSION (4) --- (None) > --- UTILITY (4) ------ Small Storage Unit Advanced Weight Redist. System Visual Processing Unit > --- WEAPON (2) ------- Light Assault Rifle Assault Cannon > --- INVENTORY (8) ---- Light Ion Engine Light Nuclear Core Light Treads Light Assault Rifle Peak State ------------ > --- POWER ------------ Light Deuterium Engine > --- PROPULSION ------- Flight Unit Flight Unit VTOL Module VTOL Module > --- UTILITY ---------- Small Storage Unit Advanced Weight Redist. System Visual Processing Unit > --- WEAPON ----------- Light Cannon Assault Cannon > --- INVENTORY -------- Light Ion Engine Light Treads Light Assault Rifle Light Assault Rifle [Rating: 19] Favorites ----------- Power Ion Engine Engine Ion Engine Propulsion Light Treads Treads Light Treads Flight Unit VTOL Module Utility Small Storage Unit Device Advanced Weight Redist. System Storage Small Storage Unit Processor Visual Processing Unit Weapon Light Cannon Ballistic Gun Light Assault Rifle Ballistic Cannon Light Cannon Build | -11 -10 -10 -8 ------- Run | Yrd Mat Sub Mat Slots Evolved 4 | . . . 4 Power . | . . . . Propulsion 2 | . . . 2 Utility 2 | . . . 2 Weapon . | . . . . Parts Attached 21 | 7 4 . 10 Power 4 | 2 1 . 1 Engine 4 | 2 1 . 1 Core . | . . . . Reactor . | . . . . Propulsion 8 | 2 . . 6 Treads 2 | 2 . . . Leg . | . . . . Wheel . | . . . . Hover . | . . . . Flight 6 | . . . 6 Utility 3 | 1 1 . 1 Device 1 | . . . 1 Storage 1 | 1 . . . Processor 1 | . 1 . . Hackware . | . . . . Protection . | . . . . Artifact . | . . . . Weapon 6 | 2 2 . 2 Energy Gun . | . . . . Energy Cannon . | . . . . Ballistic Gun 2 | 2 . . . Ballistic Cannon 4 | . 2 . 2 Launcher . | . . . . Special Weapon . | . . . . Impact Weapon . | . . . . Slashing Weapon . | . . . . Piercing Weapon . | . . . . Special Melee Weapon . | . . . . Unidentified Prototypes . | . . . . Parts Lost 11 | . . 3 8 Power 1 | . . 1 . Propulsion 7 | . . 1 6 Utility . | . . . . Weapon 3 | . . 1 2 Highest Loss Streak 5 | . . 2 5 To Critical Strikes . | . . . . Average Backups 6 | 1 6 7 4 Power 1 | . 1 . 1 Propulsion 3 | . 3 4 1 Utility . | . . . . Weapon 1 | . 1 2 1 Tool/Special . | . . . . Unused Backups 2 | . 1 . 1 Power 1 | . . . 1 Propulsion 1 | . 1 . . Utility . | . . . . Weapon . | . . . . Tool/Special . | . . . . Average Slot Usage (%) 88 | . 96 93 66 Engine 12 | . 14 13 9 Treads 20 | . 28 22 . Flight 3 | . . . 14 Device 1 | . . . 6 Storage 12 | . 14 14 9 Processor 11 | . 10 14 9 Ballistic Gun 6 | . 10 1 5 Ballistic Cannon 19 | . 17 26 12 Peak Build Rating 19 | 6 9 9 19 Average Rating 9 | 4 7 8 13 On Entrance 5 | . 6 9 7 Avg Prop Armor Cover (%) . | . . . . Naked Turns . | . . . . Heaviest Build 18 | 12 16 16 18 Greatest Support 40 | 40 40 40 25 Greatest Overweight (x) 1 | . . . 1 Average Overweight (x) . | . . . . Largest Inventory Capacity 8 | 8 8 8 8 Average Capacity 7 | 6 8 8 8 Most Carried 8 | 2 8 8 7 Average Carried 6 | 1 6 7 4 Final Capacity 8 | 8 8 8 8 Final Carried 8 | 2 8 6 4 Class Distribution -------------------- 94% | Mutant 5% | Sprinter Dominant Class ---------------- Mutant | -10/Materials Mutant | -10/Subcaves Mutant | -8/Materials Resources | -11 -10 -10 -8 ----------- Run | Yrd Mat Sub Mat Matter Collected 976 | 236 210 39 491 Remotely . | . . . . Salvage Created 964 | . 461 63 440 Parts 67 | . 38 7 22 Haulers Intercepted 5 | . 2 . 3 Recyclers Shooed . | . . . . Parts Field Recycled . | . . . . Retrieved Matter . | . . . . Parts Self-Destructed 10 | . . 10 . Prevented . | . . . . Parts Restored . | . . . . Kills | -11 -10 -10 -8 ------- Run | Yrd Mat Sub Mat Combat Hostiles Destroyed 26 | . 12 3 11 Guns 3 | . 3 . . Cannons 22 | . 8 3 11 AOE 1 | . 1 . . Classes Destroyed 9 | . 7 1 1 Worker 1 | . 1 . . Builder 2 | . 2 . . Hauler 5 | . 2 . 3 Recycler 2 | . 1 . 1 Operator 1 | . . . 1 Watcher 3 | . 3 . . Swarmer 14 | . 6 2 6 Grunt 9 | . 6 . 3 Sentry 3 | . . 1 2 Best Kill Streak 9 | . 9 2 7 Combat Bots Only 4 | . 3 2 4 Max Kills in Single Turn 5 | . 5 1 2 Gunslinging . | . . . . Exploded 1 | . 1 . . Melee . | . . . . Uniques/NPCs Destroyed . | . . . . Combat | -11 -10 -10 -8 -------- Run | Yrd Mat Sub Mat Hostile Shots Fired 180 | . 52 47 81 Missed 58 | . 11 16 31 Hits 122 | . 41 31 50 Projectile 122 | . 41 31 50 Critical Strikes 2 | . . . 2 Damage Taken 1517 | . 469 347 701 Core 259 | . 100 71 88 Absorbed by Shields . | . . . . Regen/Repaired (Parts) 14 | . . . 14 Core Remaining (%) 65 | 100 . 31 . Volleys Fired 94 | . 40 12 42 Largest 2 | . 2 2 2 Hottest 67 | . 60 60 67 Shots Fired 180 | . 81 22 77 Gun 35 | . 22 5 8 Cannon 145 | . 59 17 69 Launcher . | . . . . Special . | . . . . Kinetic 180 | . 81 22 77 Thermal . | . . . . Explosive . | . . . . Electromagnetic . | . . . . Robot Hit Streak 6 | . 4 6 6 Robot Miss Streak 4 | . 3 4 3 Penetration Max . | . . . . Secondary Targets . | . . . . Shots Hit Robots 95 | . 41 8 46 Core Hits 49 | . 23 4 22 Critical Kills . | . . . . Critical Parts Destroyed . | . . . . Critical Strikes 6 | . 1 1 4 Blast 6 | . 1 1 4 Melee Attacks . | . . . . Impact . | . . . . Slashing . | . . . . Piercing . | . . . . Sneak Attacks . | . . . . Combat Hostiles . | . . . . Follow-up Attacks . | . . . . Damage Inflicted 2040 | . 1109 128 803 Guns 136 | . 83 7 46 Cannons 1369 | . 491 121 757 Explosions 531 | . 531 . . Melee . | . . . . Ramming 4 | . 4 . . Kinetic 1505 | . 574 128 803 Thermal . | . . . . Explosive 531 | . 531 . . Electromagnetic . | . . . . Impact . | . . . . Slashing . | . . . . Piercing . | . . . . Highest Corruption 3 | . 3 3 . Average Corruption 2 | . 2 3 . Corruption Purged . | . . . . Corruption Blocked . | . . . . Effects 23 | . 5 18 . Message Errors 4 | . . 4 . Matter Fused 7 | . 1 6 . Heat Flow Errors 2 | . . 2 . Energy Discharges 5 | . 2 3 . Data Loss (minor) 4 | . 1 3 . Misfires 1 | . 1 . . Overload Shots . | . . . . Overflow Damage 77 | . 73 . 4 Projectiles 20 | . 16 . 4 Explosions 57 | . 57 . . Melee . | . . . . Knockbacks 19 | . 8 . 11 Impact . | . . . . Kinetic 16 | . 6 . 10 Secondary 3 | . 2 . 1 Self-Inflicted Damage 93 | . 93 . . Shots 1 | . 1 . . Rammed 1 | . 1 . . Targets Rammed 1 | . 1 . . Kicked . | . . . . Crushed . | . . . . Highest Temperature 190 | . 27 190 79 Average Temperature 22 | . 13 94 17 Received Heat Transfer 348 | . 93 12 243 Siege Activations . | . . . . Martial Activations . | . . . . Shielding Activations . | . . . . Robots Disrupted . | . . . . Combat Hostiles . | . . . . Robots Corrupted . | . . . . Combat Hostiles . | . . . . Parts Fried . | . . . . Impact Corruptions . | . . . . Robots Melted . | . . . . Combat Hostiles . | . . . . Parts Melted . | . . . . Heat Transferred . | . . . . Parts Sabotaged . | . . . . Parts Stolen . | . . . . Parts Stripped . | . . . . Power Chain Reactions . | . . . . Alert | -11 -10 -10 -8 ------- Run | Yrd Mat Sub Mat Maximum Alert Level 1 | . 1 . 1 Low Security (%) 77 | 100 83 . 62 Level 1 22 | . 16 . 37 Level 2 . | . . . . Level 3 . | . . . . Level 4 . | . . . . Level 5 . | . . . . High Security . | . . . . Max Security . | . . . . Peak Influence 241 | . 233 . 241 Initial 13 | . . . 13 Average 125 | . 117 . 160 Influence Increases 1019 | . 478 70 471 Destroy 0b10 Robot/C 520 | . 240 60 220 Destroy 0b10 Robot/NC 70 | . 45 . 25 Destroy Leader 116 | . 50 10 56 Successful Hack 10 | . 10 . . Disable Machine 90 | . 75 . 15 Destroy Structure 48 | . 43 . 5 Partial Spotted 45 | . . . 45 Lose Combat Pursuer 120 | . 15 . 105 Influence Decreases 844 | . 321 201 322 Entered New Map 89 | . . 76 13 Time Decay 675 | . 321 125 229 Lost Part 80 | . . . 80 Squads Dispatched 2 | . 1 . 1 Investigation 1 | . 1 . . Extermination . | . . . . Reinforcement 1 | . . . 1 Assault . | . . . . Garrison . | . . . . Intercept . | . . . . Searches Triggered . | . . . . Construction Impeded . | . . . . Haulers Reinforced . | . . . . Active Scanning Responses . | . . . . Cargo Convoy Interrupts . | . . . . Stealth | -11 -10 -10 -8 --------- Run | Yrd Mat Sub Mat Distress Signals 4 | . 2 . 2 Communications Jammed . | . . . . Distress Signals . | . . . . Times Spotted 50 | . 19 6 25 Peak Tracking Total 8 | . 4 3 8 Tactical Retreats 5 | . 1 . 4 Traps | -11 -10 -10 -8 ------- Run | Yrd Mat Sub Mat Traps Triggered 3 | . 3 . . Indirectly . | . . . . Trap Hack Attempts . | . . . . Triggered . | . . . . Disarmed . | . . . . Reprogrammed . | . . . . Reused . | . . . . Traps Extracted . | . . . . Installed . | . . . . Triggered . | . . . . Machines | -11 -10 -10 -8 ---------- Run | Yrd Mat Sub Mat Machines Disabled 6 | . 5 . 1 Max in Single Turn 1 | . 1 . 1 Machines Repaired . | . . . . Machines Dismantled . | . . . . Machines Sabotaged . | . . . . Overloaded Fab Kills . | . . . . Hacking | -11 -10 -10 -8 --------- Run | Yrd Mat Sub Mat Machines Accessed 5 | . 4 . 1 Terminals 3 | . 3 . . Fabricators . | . . . . Repair Stations 1 | . . . 1 Recycling Units 1 | . 1 . . Scanalyzers . | . . . . Garrison Access . | . . . . Total Hacks 14 | . 12 . 2 Successful 9 | . 7 . 2 Failed 5 | . 5 . . Catastrophic 1 | . 1 . . Database Lockouts . | . . . . Manual 3 | . 3 . . Terminals 7 | . 7 . . Fabricators . | . . . . Repair Stations 2 | . . . 2 Recycling Units 5 | . 5 . . Scanalyzers . | . . . . Garrison Access . | . . . . Terminal Hacks 4 | . 4 . . Prototype ID Bank 1 | . 1 . . Maintenance Status 1 | . 1 . . Hauler Manifests 1 | . 1 . . Zone Layout 1 | . 1 . . Fabricator Hacks . | . . . . Repair Station Hacks 2 | . . . 2 Scan Component 1 | . . . 1 Repair 1 | . . . 1 Recycling Unit Hacks 3 | . 3 . . Process 1 | . 1 . . Report Inventory 1 | . 1 . . Retrieve Matter 1 | . 1 . . Scanalyzer . | . . . . Garrison Access Hacks . | . . . . Unauthorized Hacks . | . . . . Terminals . | . . . . Fabricators . | . . . . Repair Stations . | . . . . Recycling Units . | . . . . Scanalyzers . | . . . . Garrison Access . | . . . . Data Cores Recovered . | . . . . Used . | . . . . Hacking Detections 3 | . 3 . . Full Trace Events 2 | . 2 . . Feedback Events . | . . . . Feedback Blocked . | . . . . Robot Schematics Acquired . | . . . . Robots Built . | . . . . Authchips . | . . . . Time . | . . . . Total Robot Build Rating . | . . . . Part Schematics Acquired . | . . . . Parts Built . | . . . . Authchips . | . . . . Time . | . . . . Total Part Build Rating . | . . . . Part Studies Acquired . | . . . . Parts Repaired 1 | . . . 1 Time 32 | . . . 32 Parts Recycled . | . . . . Recycled Matter 215 | . 215 . . Retrieved Matter 223 | . 223 . . Retrieved Components . | . . . . Parts Scanalyzed . | . . . . Part Schematics Acquired . | . . . . Parts Damaged . | . . . . Bothacking | -11 -10 -10 -8 ------------ Run | Yrd Mat Sub Mat Used RIF Installer . | . . . . Robots Hacked . | . . . . Non-combat . | . . . . Combat . | . . . . Robot Hacks Applied . | . . . . Relay Couplers Released . | . . . . Fabnet Peak Effective % . | . . . . Robots Rewired . | . . . . Allies Hacked . | . . . . Hacks Repelled . | . . . . Allies | -11 -10 -10 -8 -------- Run | Yrd Mat Sub Mat Total Allies . | . . . . Largest Group . | . . . . Highest-Rated Group . | . . . . Highest-Rated Ally . | . . . . Total Orders . | . . . . Ally Attacks . | . . . . Total Damage . | . . . . Kills . | . . . . Allies Corrupted . | . . . . Allies Melted . | . . . . Intel | -11 -10 -10 -8 ------- Run | Yrd Mat Sub Mat Active Infowar (turns) 2244 | . 914 791 539 Optics 2244 | . 914 791 539 Robot Analysis Total . | . . . . Derelict Logs Recovered 1 | . . 1 . Drone Launches . | . . . . Drone Recoveries . | . . . . Exploration | -11 -10 -10 -8 ------------- Run | Yrd Mat Sub Mat Turns Passed 2610 | 72 1208 791 539 Spaces Moved 1556 | 41 668 473 374 Core 111 | 4 . . 107 Treads 1203 | 37 668 473 25 Legs . | . . . . Wheels . | . . . . Hover . | . . . . Flight 242 | . . . 242 Fastest Speed 26 | 50 160 160 26 Average Speed 135 | 149 160 160 59 Slowest Speed 160 | 160 160 160 160 Overloaded Moves . | . . . . Propulsion Burnouts . | . . . . Robots Hopped 4 | . . . 4 Potential Cave-ins . | . . . . Cave-ins Triggered . | . . . . Exploration Rate (%) 36 | 3 77 36 30 Regions Visited 3 Branch Regions 1 Pre-discovered Areas 1 | . . 1 . Known Exits Taken . | . . . . Unknown Exits Taken 3 | 1 1 1 . Scrap Searched . | . . . . Spaces Dug . | . . . . Terrain Destroyed 46 | . 44 . 2 Melee . | . . . . Projectile 2 | . . . 2 AOE 44 | . 44 . . Terrain Rammed . | . . . . Walls Destroyed . | . . . . Machines Disabled . | . . . . Actions | -11 -10 -10 -8 --------- Run | Yrd Mat Sub Mat Total 1872 | 48 730 486 608 Wait 188 | . 8 . 180 Move 1546 | 40 667 472 367 Hop 3 | . . . 3 Pick Up 12 | 1 8 . 3 Fast Attach 11 | 6 1 . 4 Attach 8 | . . 2 6 Detach 1 | . . . 1 Swap 6 | 1 3 . 2 Drop 2 | . 2 . . Fire 94 | . 40 12 42 Melee . | . . . . Ram . | . . . . Kick . | . . . . Crush 1 | . 1 . . Escape Stasis . | . . . . Rewire . | . . . . Trap . | . . . . Miscellaneous . | . . . . Route ------- -11/Scrapyard -10/Materials (discovered 4 exits: [*Mat x2] / [*Min] / [*Sub]) -10/Subcaves -8/Materials (discovered 1 exit: [*Fac]) History --------- Turn | Location | Event 10 | -11/Scrapyard | Discovered new exit (range 15) 73 | -11/Scrapyard | Entered Materials 177 | -10/Materials | Discovered new exit (range 7) 302 | -10/Materials | Build established: Mutant 635 | -10/Materials | Discovered new exit (range 18) 938 | -10/Materials | Discovered new exit (range 8) 1207 | -10/Materials | Discovered new exit (range 10) 1281 | -10/Materials | Entered Subcaves 1282 | -10/Subcaves | Approached by a straggling Scientist 1367 | -10/Subcaves | Shifting Twisted Machinery released Sub. Optics 1376 | -10/Subcaves | Shifting Twisted Machinery released Sub. Optics 1494 | -10/Subcaves | Learned location of Storage (-7) 1978 | -10/Subcaves | Core integrity fell below 50% 2049 | -10/Subcaves | Discovered new exit (range 7) 2072 | -10/Subcaves | Entered Materials 2072 | -8/Materials | Evolved 4 slots: Propulsion x2, Utility x2 2210 | -8/Materials | Repaired VTOL Module 2398 | -8/Materials | Lost 5 parts (4n1w) 2438 | -8/Materials | Discovered new exit (range 17) 2611 | -8/Materials | Self-destructed Last Messages --------------- 02469_ U-05 Engineer lays Concrete. 02471_ U-05 Engineer builds a Wall. 02471_ T-07 Excavator is excavating. 02475_ U-05 Engineer builds a Wall. 02475_ T-07 Excavator is excavating. 02479_ U-05 Engineer lays Concrete. 02479_ T-07 Excavator is excavating. 02480_ U-05 Engineer builds a Wall. 02484_ T-07 Excavator is excavating. 02486_ U-05 Engineer builds a Wall. 02490_ T-07 Excavator is excavating. 02492_ U-05 Engineer builds a Wall. 02500_ U-05 Engineer lays Concrete. 02507_ U-05 Engineer builds a Wall. 02523_ U-05 Engineer lays Concrete. 02524_ U-05 Engineer builds a Wall. 02546_ U-05 Engineer lays Concrete. 02551_ U-05 Engineer builds a Wall. 02579_ U-05 Engineer builds a Door. 02592_ U-05 Engineer builds a Wall. Map ----- +----------------------------------------------------+ | | | | | | | | | | | | | | | | | | | | | | | | | | | | | | | | | ?????????????????????#?????##?????????????######## | | ????????????????????# """"" #????#######?# !!! | | ????????????????????# ""T"" #??# ] #%T !!! | | ????????????????????# #??# # !!! | | ????????????????????# * #??# """ """ # | | ????????????????????# #??# """ """ # | | ????????????????????# """ #??# """ """ # """ | | ????????????????????# """ #??# """ """ # """ | | ????????????????????# """ #??# """ """ # = """ | | ????????????????????# @ #??# # | | ?????####+###############/###########+########+### | | ?????# | | ?????# < | | ?????# | | ?????######### ###+######+########+#######+## | | ?????????????# # #?????????? ???# | | ?????????????#! !# #????????"" ?# | | ?????????????##!!!!## #???????#"T ## | | ??????????????####### #???????#"" ## | | ????????????????????# #???????# ## ! | | ????????????????????# #???????# """ ## | | ????????????????????# #???????# """ ###### | | ????????????????????# #???????# """ #??# | | ????????????????????# #???????# #########??# | | ????????????????????# #???????##???????????# | | ????????????????????# #????????????????????# | | ????????????????????## #????????????????????# | | ?????????????????????######????????????????????# | | ???????????????????????????????????????????????# | | ???????????????????????????????????????????????# | | ???????????????????????????????????????????????# | | ???????????????????????????????????????????????### | | ?????????????????????????????????????????????????? | | ?????????????????????????????????????????????????? | +----------------------------------------------------+ Best States ------------- Heat Dissipation 31 Energy Generation 14 Energy Capacity 250 Matter Stores 300 Matter Capacity 300 Sight Range 18 Terrain Scan Density 10 Additional Mass Support 9 Evasion (%) 64 Recoil Reduction 2 Item Schematics ----------------- None Robot Schematics ------------------ None Fabricated ------------ Nothing Repaired ---------- VTOL Module | 44% | -8/Materials Studied --------- None Alien Tech Used ----------------- None Achievements -------------- None Challenges ------------ None Game ------ Seed SwarmWeldingSteel Manual? 0 Play Time 00:21:31 Cumulative 6.5 hours Start 2026.07.30 @ 15:01:29 End 2026.07.30 @ 15:23:11 Sessions 1 Manual Loads 0 Difficulty Rogue Special Mode None Game No. 14 Rogue 14 Adventurer 0 Explorer 0 Win Type - Total 0 Types 0/0/0/0/0/0/0/0/0/0 Lore% 7 Gallery% 9 Achievement% 15 Wizard Run 0 Options --------- Layout 1 ASCII 0 Keyboard 1 Movement Vi Keybinds 0 Fullscreen 1 Font 24/Smallcaps Map View 50x40 Zoom Use 0% Tactical HUD 1 Map Filters NONE Filters NONE Steam 1 RUN: b99e892c-353c-4187-87ca-de5c46624c10